bitfinex/quotes_SOLUSD_20240725
["timestamp","ask_amount","ask_price","bid_price","bid_amount"]
[1721917928127,5.8667,170.46,170.4,14.6712]
[1721917928319,5.8671,170.45,170.41,1.97415054]
[1721917928518,5.8672,170.44,170.41,1.97415054]
[1721917928748,6.6648949,170.48,170.41,1.97415054]
[1721917928929,6.6647949,170.48,170.41,16.64395054]
[1721917929125,0.7987949,170.48,170.41,1.97415054]
[1721917929446,5.8675,170.43,170.41,1.97415054]
[1721917929618,0.7987949,170.48,170.34,14.6757]
[1721917929816,14.6659,170.47,170.35,1.97484587]
[1721917930017,0.7987949,170.48,170.35,1.97484587]
[1721917930220,0.7987949,170.48,170.39,14.6721]
[1721917930456,5.8678,170.42,170.38,5.8692]
[1721917930629,5.8686,170.4,170.36,14.6745]
[1721917930844,5.8686,170.4,170.36,16.64922995]
[1721917931254,5.8695,170.37,170.36,1.97472995]
[1721917931460,14.6745,170.37,170.26,14.6833]
[1721917931669,5.8719,170.31,170.25,5.8734]
[1721917931868,14.6765,170.34,170.25,1.97600584]
[1721917931869,5.8726,170.29,170.25,1.97600584]
[1721917932335,5.8735,170.26,170.18,14.6894]
[1721917932536,5.8734,170.26,170.19,1.97670248]
[1721917932854,5.8736,170.26,170.2,5.8754]
[1721917933061,45.0,170.25,170.2,1.97658634]
[1721917933241,45.0,170.28,170.2,1.97658634]
[1721917933441,5.8739,170.25,170.2,1.97658634]
[1721917933648,6.5103,170.39,170.33,5.8708]
[1721917933847,6.5103,170.39,170.34,14.6759]
[1721917934050,6.5103,170.39,170.24,1.17420783]
[1721917934051,6.5103,170.39,170.24,1.17410864]
[1721917934261,21.183,170.39,170.26,14.6826]
[1721917934555,5.8716,170.32,170.27,1.97577374]
[1721917934759,14.6749,170.36,170.27,1.97577374]
[1721917934946,14.6787,170.32,170.2,5.8751]
[1721917935147,14.6787,170.32,170.2,7.85168634]
[1721917935340,29.3519,170.35,170.2,7.85168634]
[1721917935341,14.6809,170.29,170.2,1.97658634]
[1721917935542,5.875,170.22,170.14,14.693]
[1721917935734,14.6843,170.25,170.14,14.693]
[1721917935935,45.0,170.21,170.14,14.693]
[1721917936144,6.0833,170.28,170.15,1.97716717]
[1721917936342,5.8763,170.18,170.15,1.97716717]
[1721917936543,14.6852,170.24,170.15,7.85426717]
[1721917936752,45.0,170.23,170.15,1.97716717]
[1721917937065,6.5664,170.34,170.18,29.3791]
[1721917937359,6.1249,170.4,170.2,20.0]
[1721917937560,5.8709,170.33,170.28,14.6816]
[1721917937739,5.8709,170.33,170.21,3.15098349]
[1721917937740,5.8718,170.31,170.21,1.97647021]
[1721917937944,6.1249,170.4,170.26,5.8731]
[1721917938148,14.6739,170.37,170.27,1.97577374]
[1721917938350,6.1249,170.4,170.28,15.85610272]
[1721917938565,5.8707,170.34,170.29,1.97554169]
[1721917938772,5.8709,170.33,170.29,1.97554169]
[1721917938983,5.8719,170.3,170.29,1.97554169]
[1721917939353,64.7451,170.39,170.29,1.97554169]
[1721917939551,5.8705,170.35,170.29,1.97554169]
[1721917939773,35.4,170.39,170.29,1.97554169]
[1721917940074,14.6732,170.38,170.29,1.97554169]
[1721917940247,5.8713,170.32,170.29,1.97554169]
[1721917940579,6.1249,170.4,170.31,14.6783]
[1721917940755,5.8691,170.39,170.34,5.8705]
[1721917940951,21.0461,170.47,170.35,7.84474587]
[1721917941154,35.7121,170.47,170.35,1.97484587]
[1721917941353,35.7121,170.47,170.3,14.6797]
[1721917941557,5.8688,170.4,170.35,5.8701]
[1721917941770,35.7121,170.47,170.35,5.8701]
[1721917941771,55.6268,170.46,170.35,1.97484587]
[1721917941971,40.96,170.46,170.35,1.97484587]
[1721917942166,14.669,170.43,170.35,1.97484587]
[1721917942353,29.3397,170.42,170.21,1.17426428]
[1721917942676,47.09855364,170.46,170.32,5.8709]
[1721917942883,47.09855364,170.46,170.33,1.97507776]
[1721917942884,40.96,170.46,170.33,1.97507776]
[1721917943073,6.3808,170.47,170.36,14.6745]
[1721917943279,5.8671,170.44,170.38,5.8689]
[1721917943582,5.8682,170.41,170.37,1.97461404]
[1721917943790,14.6681,170.44,170.37,1.97461404]
[1721917944275,50.0681,170.44,170.37,1.97461404]
[1721917944589,50.0681,170.44,170.28,14.681]
[1721917944590,5.8703,170.35,170.28,14.681]
[1721917944772,5.8695,170.37,170.32,5.871]
[1721917944964,14.6703,170.42,170.32,7.84619372]
[1721917945165,5.8698,170.37,170.32,7.84619372]
[1721917945361,45.0,170.41,170.33,1.97507776]
[1721917945563,5.8706,170.34,170.33,1.97507776]
[1721917945754,45.0,170.34,170.25,14.6841]
[1721917946077,5.8719,170.31,170.25,5.8736]
[1721917946259,5.8719,170.31,170.25,1.97600584]
[1721917946465,5.8712,170.33,170.27,5.8729]
[1721917946671,5.871,170.33,170.27,5.8729]
[1721917946877,45.0,170.34,170.25,22.53300584]
[1721917947069,5.8723,170.3,170.25,16.65960584]
[1721917947259,5.8727,170.28,170.25,1.97600584]
[1721917947457,5.8727,170.28,170.2,15.7097]
[1721917947458,80.4,170.34,170.2,5.8751]
[1721917947667,14.6806,170.3,170.19,14.6892]
[1721917947856,45.0,170.29,170.21,1.97647021]
[1721917948058,5.8737,170.25,170.21,1.97647021]
[1721917948595,45.0,170.29,170.21,16.66327021]
[1721917948877,5.8735,170.26,170.21,16.66327021]
[1721917949287,45.0,170.29,170.21,16.66327021]
[1721917949778,45.0,170.29,170.21,1.97647021]
[1721917949985,14.6825,170.28,170.21,1.97647021]
[1721917950160,5.8747,170.22,170.21,1.97647021]
[1721917950486,45.0,170.29,170.21,1.97647021]
[1721917950698,5.8734,170.26,170.21,1.97647021]
[1721917950996,45.0,170.29,170.21,1.97647021]
[1721917951294,5.8743,170.24,170.18,5.8759]
[1721917951588,45.0,170.29,170.22,5.8744]
[1721917951797,5.8727,170.28,170.23,5.8742]
[1721917951973,45.0,170.29,170.17,14.6909]
[1721917951974,45.0,170.27,170.17,14.6909]
[1721917952158,5.8739,170.25,170.17,1.9769348]
[1721917952364,14.6782,170.32,170.21,5.875]
[1721917952564,80.4,170.31,170.18,1.97681863]
[1721917952772,5.8744,170.24,170.19,5.8754]
[1721917953073,5.8743,170.24,170.19,5.8754]
[1721917953267,45.0,170.31,170.21,14.6874]
[1721917953576,5.8738,170.25,170.21,14.6874]
[1721917953793,45.0,170.24,170.18,1.97681863]
[1721917954092,80.4,170.24,170.08,6.513]
[1721917954397,5.8769,170.16,170.11,5.8785]
[1721917954574,14.6877,170.22,170.12,5.8781]
[1721917954575,5.8765,170.17,170.12,5.8781]
[1721917954896,14.6877,170.22,170.14,5.8771]
[1721917954897,5.876,170.19,170.14,5.8771]
[1721917955388,5.876,170.19,170.15,5.8771]
[1721917955584,5.8754,170.2,170.15,5.877]
[1721917955788,5.8751,170.21,170.16,5.8767]
[1721917956006,40.96,170.3,170.12,1.97751584]
[1721917956206,40.96,170.3,170.17,1.9769348]
[1721917956496,5.8754,170.2,170.17,1.9769348]
[1721917956888,5.8757,170.19,170.15,5.8771]
[1721917957090,5.8757,170.19,170.13,14.6943]
[1721917957276,5.8766,170.17,170.13,14.6943]
[1721917957472,35.4,170.26,170.14,5.8771]
[1721917957473,45.0,170.18,170.14,5.8771]
[1721917957682,50.8761,170.18,170.13,20.5718]
[1721917957888,50.8761,170.18,170.08,6.513]
[1721917957889,45.0,170.18,170.11,5.8782]
[1721917958097,5.8766,170.17,170.12,5.8781]
[1721917958316,45.0,170.18,170.12,5.8781]
[1721917958491,5.8767,170.17,170.12,5.8781]
[1721917958988,50.8771,170.16,170.11,20.5741]
[1721917959193,11.9391,170.23,170.12,1.97751584]
[1721917959396,14.6819,170.28,170.18,5.8758]
[1721917959600,41.4645,170.29,170.2,5.8753]
[1721917959601,6.0645,170.29,170.2,5.8753]
[1721917959812,6.0645,170.29,170.21,5.875]
[1721917960013,6.0645,170.29,170.14,40.0]
[1721917960218,5.8734,170.26,170.21,20.5626]
[1721917960510,21.3367,170.34,170.24,5.874]
[1721917960720,5.8723,170.29,170.23,14.6854]
[1721917960891,5.8727,170.28,170.23,14.6854]
[1721917961230,6.4153,170.4,170.32,29.3564]
[1721917961423,76.36,170.46,170.32,1.97519372]
[1721917961726,5.8671,170.44,170.38,14.6722]
[1721917961919,5.8674,170.44,170.38,14.6722]
[1721917962214,6.658,170.47,170.41,5.868]
[1721917962518,0.7987949,170.48,170.41,5.8681]
[1721917962723,0.7987949,170.48,170.38,14.6722]
[1721917962724,5.8664,170.46,170.38,14.6722]
[1721917962885,5.8681,170.42,170.36,5.8696]
[1721917963086,0.7987949,170.48,170.36,1.97472995]
[1721917963300,5.8679,170.42,170.36,7.84452995]
[1721917963504,0.7987949,170.48,170.37,14.6734]
[1721917963806,5.8676,170.43,170.36,7.84422995]
[1721917964010,5.8683,170.41,170.36,1.97472995]
[1721917964723,5.8681,170.42,170.36,7.84462995]
[1721917965023,45.0,170.41,170.36,7.84462995]
[1721917965223,0.7987949,170.48,170.36,16.64932995]
[1721917965403,0.7987949,170.48,170.39,14.6715]
[1721917965591,5.8676,170.43,170.37,1.97461404]
[1721917965795,0.7987949,170.48,170.4,5.8684]
[1721917965796,5.8668,170.45,170.4,5.8684]
[1721917965994,5.8667,170.46,170.4,5.8684]
[1721917966302,0.7987949,170.48,170.41,14.6702]
[1721917966607,6.6644949,170.48,170.42,5.8678]
[1721917966999,0.7987949,170.48,170.43,5.8674]
[1721917967209,5.8691,170.39,170.37,1.97461404]
[1721917967396,36.1987949,170.48,170.37,1.97461404]
[1721917967397,14.6675,170.45,170.37,1.97461404]
[1721917967598,14.6675,170.45,170.32,14.6777]
[1721917967599,35.4,170.45,170.32,14.6777]
[1721917967900,35.4,170.44,170.25,1.1741485]
[1721917968119,5.8685,170.41,170.35,5.8702]
[1721917968345,5.8692,170.38,170.34,14.6763]
[1721917968643,45.0,170.4,170.32,5.8709]
[1721917968644,45.0,170.4,170.32,5.8711]
[1721917968844,45.0,170.4,170.34,5.8704]
[1721917969022,45.0,170.4,170.32,1.97519372]
[1721917969228,45.0,170.4,170.29,5.8719]
[1721917969425,14.6729,170.39,170.26,14.6826]
[1721917969725,5.8698,170.37,170.27,3.1501593]
[1721917969948,45.0,170.4,170.28,1.97565771]
[1721917970144,6.0995,170.43,170.38,5.869]
[1721917970344,5.8678,170.42,170.37,5.8695]
[1721917970546,15.4639949,170.48,170.35,14.6755]
[1721917971040,50.8639949,170.48,170.35,14.6755]
[1721917971251,36.1987949,170.48,170.31,1.9753097]
[1721917971626,50.0658,170.47,170.34,14.6764]
[1721917971954,14.6658,170.47,170.35,1.97484587]
[1721917972251,5.8666,170.46,170.4,5.8682]
[1721917972449,5.8666,170.46,170.41,5.868]
[1721917973156,0.7987949,170.48,170.39,14.6721]
[1721917973329,45.7987949,170.48,170.39,14.6721]
[1721917973731,5.8672,170.44,170.39,20.5408]
[1721917974147,5.8675,170.43,170.39,14.6721]
[1721917974357,45.7987949,170.48,170.36,14.6746]
[1721917974527,5.8675,170.43,170.37,1.97461404]
[1721917974729,14.6664,170.46,170.38,5.8692]
[1721917975050,45.0,170.45,170.38,5.8692]
[1721917975235,0.7987949,170.48,170.41,5.868]
[1721917975548,0.7987949,170.48,170.38,14.6722]
[1721917975549,5.8675,170.43,170.39,1.97438227]
[1721917975754,5.8678,170.42,170.39,1.97438227]
[1721917975956,14.6653,170.47,170.39,1.97438227]
[1721917976136,0.7987949,170.48,170.39,1.97438227]
[1721917976530,5.8671,170.45,170.4,5.8684]
[1721917977050,6.6646949,170.48,170.43,5.8674]
[1721917977248,0.7987949,170.48,170.44,5.867]
[1721917977466,0.7987949,170.48,170.45,14.667]
[1721917978560,6.6644949,170.48,170.43,5.8674]
[1721917978730,0.7987949,170.48,170.46,14.666]
[1721917978936,0.7987949,170.48,170.47,5.8661]
[1721917979456,0.7987949,170.48,170.46,20.5324]
[1721917979764,0.7987949,170.48,170.44,1.97380306]
[1721917979765,0.7987949,170.48,170.44,7.84090306]
[1721917979934,0.7987949,170.48,170.44,1.97380306]
[1721917980457,0.7987949,170.48,170.41,5.8679]
[1721917980634,5.8663,170.47,170.42,5.8677]
[1721917980826,5.8661,170.47,170.42,5.8677]
[1721917981152,0.7987949,170.48,170.46,20.5319]
[1721917981336,0.7987949,170.48,170.46,14.6655]
[1721917981542,0.7987949,170.48,170.43,16.64241888]
[1721917981735,0.2987949,170.48,170.44,1.97380306]
[1721917981935,0.2987949,170.48,170.45,5.8667]
[1721917982131,0.2987949,170.48,170.47,5.8661]
[1721917982545,0.2987949,170.48,170.47,27.83955571]
[1721917982732,0.2987949,170.48,170.47,7.83955571]
[1721917983053,55.615,170.6,170.47,7.83955571]
[1721917983054,5.8618,170.6,170.55,5.863]
[1721917983261,5.8618,170.6,170.47,21.97345571]
[1721917983262,55.6177,170.68,170.56,14.6569]
[1721917983555,55.6177,170.68,170.58,14.6552]
[1721917983556,14.6577,170.68,170.58,14.6552]
[1721917983766,5.8612,170.62,170.57,7.83489873]
[1721917983934,14.649,170.66,170.57,1.97229873]
[1721917984340,5.8613,170.61,170.57,1.97229873]
[1721917984946,6.1331,170.7,170.51,14.6613]
[1721917984947,14.6513,170.64,170.51,14.6613]
[1721917985149,14.6513,170.64,170.51,16.63429275]
[1721917985333,55.608,170.68,170.53,29.3202]
[1721917985544,55.608,170.68,170.57,20.5191]
[1721917985865,5.8625,170.58,170.54,1.97264568]
[1721917986032,40.96,170.68,170.54,7.83624568]
[1721917986033,14.6515,170.64,170.54,7.83624568]
[1721917986239,5.862,170.59,170.54,1.97264568]
[1721917986551,5.8624,170.58,170.54,1.97264568]
[1721917988172,45.0,170.47,170.38,22.51639815]
[1721917988365,5.8675,170.43,170.38,7.84339815]
[1721917988574,45.0,170.47,170.42,14.6692]
[1721917988742,70.2759,170.56,170.42,16.6432347]
[1721917988946,59.6585,170.55,170.44,5.867]
[1721917989241,45.0,170.55,170.43,1.173397]
[1721917989443,45.0,170.55,170.45,1.97368726]
[1721917989747,5.8648,170.51,170.46,5.8664]
[1721917989950,5.8643,170.53,170.47,14.6649]
[1721917990158,5.8644,170.52,170.47,5.8658]
[1721917990344,5.864,170.53,170.48,5.8657]
[1721917990746,6.5976,170.66,170.49,1.9732242]
[1721917990944,6.5976,170.66,170.49,23.14581322]
[1721917991168,6.5976,170.66,170.57,14.6558]
[1721917991366,6.5976,170.66,170.6,14.6537]
[1721917991668,6.5976,170.66,170.57,1.97229873]
[1721917991882,6.5976,170.66,170.51,29.3225]
[1721917992162,6.12917445,170.71,170.57,29.3124]
[1721917992372,0.2,170.73,170.57,29.3124]
[1721917992373,0.2,170.73,170.64,5.8602]
[1721917992671,0.2,170.73,170.64,22.48238965]
[1721917993068,0.2,170.73,170.6,20.5149]
[1721917993069,5.8594,170.67,170.6,20.5149]
[1721917993248,0.2,170.73,170.61,16.62473632]
[1721917993249,5.8591,170.68,170.61,16.62473632]
[1721917993449,5.8593,170.67,170.62,1.97172075]
[1721917993661,35.6,170.73,170.62,1.97172075]
[1721917993848,50.2432,170.73,170.62,1.97172075]
[1721917994045,6.6589949,170.65,170.59,5.8619]
[1721917994254,0.7987949,170.65,170.6,5.8616]
[1721917994450,5.8606,170.63,170.57,14.6559]
[1721917994675,0.7987949,170.65,170.49,20.0]
[1721917994849,0.7987949,170.65,170.55,20.0]
[1721917995051,0.7987949,170.65,170.64,5.8602]
[1721917995254,0.7987949,170.65,170.64,7.83168965]
[1721917996285,0.7987949,170.65,170.59,14.6543]
[1721917996450,5.8612,170.62,170.57,5.8626]
[1721917996651,0.7987949,170.65,170.57,5.8626]
[1721917996861,5.8606,170.64,170.58,5.8623]
[1721917997062,5.8606,170.64,170.52,29.3212]
[1721917997063,0.7987949,170.65,170.57,29.3127]
[1721917997373,0.7987949,170.65,170.61,14.6532]
[1721917997552,0.7987949,170.65,170.6,5.8613]
[1721917997864,0.7987949,170.65,170.58,1.97218311]
[1721917998044,5.8609,170.63,170.57,5.8623]
[1721917998247,0.7987949,170.65,170.53,14.66]
[1721917998445,14.6507,170.64,170.54,5.8636]
[1721917998649,14.6507,170.64,170.46,76.4713]
[1721917998650,45.0,170.63,170.52,14.6602]
[1721917998863,0.7987949,170.65,170.55,14.6583]
[1721917999169,0.7987949,170.65,170.52,14.6609]
[1721917999373,0.7987949,170.65,170.53,5.864]
[1721917999374,5.8624,170.58,170.53,5.864]
[1721917999552,5.8617,170.6,170.55,5.863]
[1721917999872,14.6513,170.64,170.46,16.68400305]
[1721918000049,0.7987949,170.65,170.54,14.6591]
[1721918000373,0.7987949,170.65,170.59,5.8619]
[1721918000374,6.6588949,170.65,170.59,5.8619]
[1721918000586,0.7987949,170.65,170.55,1.97253002]
[1721918000793,0.7987949,170.65,170.6,14.6534]
[1721918001080,0.7987949,170.65,170.55,1.97253002]
[1721918001381,0.7987949,170.65,170.59,14.6549]
[1721918001561,0.7987949,170.65,170.57,29.3121]
[1721918001788,0.7987949,170.65,170.55,1.97253002]
[1721918002057,5.863,170.56,170.55,1.97253002]
[1721918002256,40.96,170.59,170.39,16.655]
[1721918002460,40.96,170.59,170.44,5.867]
[1721918002461,5.8654,170.49,170.44,5.867]
[1721918002769,5.8661,170.47,170.41,5.868]
[1721918002952,14.6617,170.52,170.4,1.9742664]
[1721918003150,5.8661,170.47,170.42,5.8677]
[1721918003355,45.0,170.46,170.4,16.6448664]
[1721918004066,50.8666,170.46,170.4,16.6448664]
[1721918004259,50.8666,170.46,170.4,22.5130664]
[1721918004458,45.0,170.46,170.4,1.9742664]
[1721918004650,50.8666,170.46,170.41,5.8681]
[1721918004850,5.8671,170.44,170.4,1.9742664]
[1721918005151,45.0,170.46,170.4,1.9742664]
[1721918005366,45.0,170.46,170.41,5.8681]
[1721918005671,45.0,170.46,170.42,5.8678]
[1721918005875,14.6626,170.51,170.42,5.8677]
[1721918006048,5.8677,170.43,170.4,1.9742664]
[1721918006250,45.0,170.5,170.4,16.6450664]
[1721918006459,35.4,170.5,170.4,1.9742664]
[1721918006753,5.8668,170.45,170.4,5.8682]
[1721918007271,35.4,170.52,170.33,1.17381494]
[1721918007272,50.0617,170.52,170.41,5.8678]
[1721918007445,5.8657,170.49,170.43,5.8674]
[1721918007650,14.6617,170.52,170.41,14.6702]
[1721918007846,5.8672,170.44,170.38,5.8689]
[1721918008148,14.6638,170.49,170.37,14.6734]
[1721918008365,14.666,170.47,170.37,14.6734]
[1721918008558,5.8675,170.43,170.38,5.8692]
[1721918008746,29.3231,170.52,170.37,16.64801404]
[1721918008747,45.0,170.42,170.37,16.64801404]
[1721918008953,47.262,170.55,170.38,1.97449815]
[1721918009153,5.8671,170.45,170.4,5.8682]
[1721918009467,14.6653,170.47,170.38,1.97449815]
[1721918009773,14.6653,170.47,170.32,46.0103]
[1721918009774,14.6677,170.45,170.34,5.8703]
[1721918010072,5.8693,170.38,170.32,49.9041]
[1721918010257,5.8693,170.38,170.33,5.8706]
[1721918010457,45.0,170.44,170.33,1.97507776]
[1721918010973,5.8699,170.36,170.33,1.97507776]
[1721918011163,45.0,170.35,170.24,51.5311]
[1721918011358,5.8709,170.33,170.28,5.8723]
[1721918011872,45.0,170.32,170.25,7.84940584]
[1721918012075,45.0,170.35,170.24,5.8738]
[1721918012076,14.6773,170.34,170.24,5.8738]
[1721918012255,5.8733,170.27,170.22,14.6864]
[1721918012454,5.8739,170.25,170.2,5.8754]
[1721918012654,14.6792,170.31,170.21,1.97647021]
[1721918012856,45.0,170.3,170.21,1.97647021]
[1721918013073,45.0,170.3,170.21,7.85127021]
[1721918013263,5.8736,170.26,170.21,1.97647021]
[1721918013465,45.0,170.3,170.21,1.97647021]
[1721918013665,5.8731,170.27,170.21,1.97647021]
[1721918013874,50.8735,170.26,170.21,1.97647021]
[1721918014074,50.8735,170.26,170.21,7.85137021]
[1721918014476,45.0,170.26,170.16,14.6914]
[1721918014680,45.0,170.27,170.16,14.6914]
[1721918014880,45.0,170.27,170.18,14.6895]
[1721918014881,5.8737,170.26,170.18,14.6895]
[1721918015182,45.0,170.25,170.17,5.8762]
[1721918015385,80.4,170.27,170.15,14.6928]
[1721918015584,76.36,170.26,170.11,14.6961]
[1721918015758,45.0,170.25,170.12,1.97751584]
[1721918016077,5.8754,170.2,170.14,5.8772]
[1721918016281,35.4,170.24,170.12,1.97751584]
[1721918016463,45.0,170.19,170.12,1.97751584]
[1721918016811,5.8773,170.15,170.12,1.97751584]
[1721918016957,14.6904,170.18,170.05,0.7987949]
[1721918017291,80.4,170.19,170.05,6.6790949]
[1721918017581,35.4,170.18,170.05,2.77712477]
[1721918017784,45.0,170.17,170.05,2.77712477]
[1721918017983,26.4505,170.28,170.06,1.97821354]
[1721918017984,14.6844,170.25,170.06,1.97821354]
[1721918018194,5.8761,170.18,170.12,5.8778]
[1721918018493,5.8754,170.21,170.15,5.8771]
[1721918018693,5.8733,170.27,170.21,5.875]
[1721918018870,21.133,170.28,170.16,16.66845098]
[1721918019281,5.8747,170.22,170.17,5.8764]
[1721918019593,5.8747,170.22,170.07,20.0]
[1721918019594,5.8754,170.21,170.15,5.8771]
[1721918019899,5.8771,170.15,170.09,14.6973]
[1721918020070,50.0894,170.19,170.09,14.6973]
[1721918020269,5.8771,170.15,170.1,5.8788]
[1721918020471,45.0,170.14,170.1,5.8788]
[1721918020695,45.0,170.14,170.09,20.5764]
[1721918021197,389.2,170.27,170.1,3.15354007]
[1721918021380,6.4505,170.28,170.17,14.6903]
[1721918021580,5.8744,170.23,170.17,22.5433348]
[1721918021788,14.6835,170.26,170.17,16.6672348]
[1721918022087,6.4505,170.28,170.18,1.97681863]
[1721918022271,5.8757,170.19,170.13,20.5713]
[1721918022867,5.8762,170.18,170.13,20.5713]
[1721918023070,50.0852,170.24,170.14,5.8774]
[1721918023272,29.3664,170.27,170.1,5.8786]
[1721918023273,14.6879,170.21,170.1,5.8786]
[1721918023491,14.6879,170.21,170.08,29.3962]
[1721918023492,5.8758,170.19,170.14,5.8774]
[1721918023693,14.6853,170.24,170.08,29.3962]
[1721918023901,14.6853,170.24,170.09,3.15332406]
[1721918024086,40.96,170.29,170.15,14.6926]
[1721918024288,14.6832,170.27,170.16,1.97705098]
[1721918024593,5.8755,170.2,170.16,7.85385098]
[1721918024790,14.6852,170.24,170.1,16.4416]
[1721918025002,5.8756,170.2,170.14,14.6929]
[1721918025204,5.8755,170.2,170.15,5.8769]
[1721918025376,14.6887,170.2,170.11,14.6962]
[1721918025574,5.8742,170.24,170.17,14.6907]
[1721918025795,5.8742,170.24,170.13,29.3885]
[1721918025796,5.874,170.25,170.2,5.8753]
[1721918026094,6.4505,170.28,170.12,1.97751584]
[1721918026404,16.2953,170.31,170.19,14.6891]
[1721918026606,29.3557,170.33,170.24,5.874]
[1721918026607,5.8723,170.29,170.24,5.874]
[1721918026772,6.2048,170.34,170.23,14.6853]
[1721918026978,5.8721,170.3,170.25,5.8736]
[1721918027292,5.8726,170.28,170.23,7.850538]
[1721918027499,5.872,170.3,170.25,5.8736]
[1721918027702,6.2048,170.34,170.25,14.6835]
[1721918027888,14.6784,170.32,170.23,1.976238]
[1721918028089,5.8734,170.26,170.23,1.976238]
[1721918028291,14.6806,170.3,170.18,14.6895]
[1721918028501,14.6806,170.3,170.19,1.97670248]
[1721918028804,5.8744,170.23,170.19,1.97670248]
[1721918028986,50.0798,170.31,170.21,14.6877]
[1721918029307,70.3157,170.33,170.21,14.6877]
[1721918029308,5.873,170.27,170.22,5.8747]
[1721918029517,6.2048,170.34,170.19,1.97670248]
[1721918029689,5.8717,170.31,170.26,20.5564]
[1721918029887,5.8735,170.26,170.19,1.97670248]
[1721918030109,41.6048,170.34,170.19,1.97670248]
[1721918030110,5.8749,170.22,170.19,1.97670248]
[1721918030417,14.6833,170.27,170.17,5.8763]
[1721918030706,5.8737,170.25,170.2,5.8754]
[1721918030922,5.8729,170.28,170.22,5.8746]
[1721918031215,5.872,170.3,170.24,5.8737]
[1721918031388,6.2048,170.34,170.23,14.6853]
[1721918031588,5.872,170.3,170.25,5.8736]
[1721918031997,5.8726,170.28,170.23,20.5593]
[1721918032314,14.6782,170.33,170.19,20.5643]
[1721918032315,5.8741,170.24,170.19,20.5643]
[1721918032517,14.68,170.3,170.19,14.6886]
[1721918032818,5.8737,170.25,170.2,5.8751]
[1721918032998,50.8741,170.24,170.19,1.97670248]
[1721918033206,5.8754,170.2,170.19,1.97670248]
[1721918033386,5.8754,170.2,170.12,14.6953]
[1721918033387,45.0,170.2,170.12,14.6953]
[1721918033583,45.0,170.19,170.12,14.6953]
[1721918033783,5.8757,170.2,170.15,20.5699]
[1721918034034,45.0,170.19,170.13,1.9773996]
[1721918034311,14.6833,170.27,170.15,14.6928]
[1721918034619,5.8757,170.2,170.15,20.5699]
[1721918034909,45.0,170.19,170.16,5.8767]
[1721918035102,45.0,170.19,170.15,14.6928]
[1721918035303,45.0,170.19,170.1,5.8788]
[1721918035508,45.0,170.19,170.11,5.8784]
[1721918035704,5.8774,170.15,170.09,14.698]
[1721918036012,5.8764,170.18,170.13,5.8775]
[1721918036210,45.0,170.17,170.13,14.6939]
[1721918036423,45.0,170.19,170.15,5.8771]
[1721918036585,45.0,170.19,170.1,1.97774835]
[1721918036586,5.8775,170.14,170.1,1.97774835]
[1721918036791,50.8779,170.13,170.08,20.5778]
[1721918036994,5.8779,170.13,170.08,20.5778]
[1721918037193,14.691,170.18,170.08,14.6983]
[1721918037506,5.8778,170.14,170.09,5.8791]
[1721918037692,5.8772,170.15,170.1,5.8788]
[1721918038013,50.8778,170.14,170.09,5.8792]
[1721918038196,5.8772,170.15,170.08,14.6983]
[1721918038509,45.0,170.17,170.08,20.5777]
[1721918038709,45.0,170.17,170.05,15.5000949]
[1721918039007,5.8785,170.12,170.07,5.8799]
[1721918039214,14.6927,170.16,170.05,15.5000949]
[1721918039510,5.8779,170.13,170.08,5.8795]
[1721918039810,5.8775,170.14,170.09,5.8789]
[1721918040005,45.0,170.17,170.05,2.77712477]
[1721918040186,6.0217,170.23,170.12,14.6948]
[1721918040387,11.8963,170.23,170.18,5.8759]